fUST/lending_fUST_20240624
["ID","MTS","AMOUNT","RATE_DAILY","PERIOD"]
[330224834,1719191443977,-876.0,0.00016024,2]
[330224835,1719191443987,-1117.60475758,0.00016134,2]
[330224836,1719191443996,-1117.60475758,0.00016134,2]
[330224837,1719191444005,-255.0,0.00016436,2]
[330224838,1719191444015,-989.23873511,0.00016437,2]
[330224839,1719191444026,-1000.0,0.00016437,2]
[330224840,1719191444035,-1000.0,0.00016437,2]
[330224841,1719191444045,-1000.0,0.00016437,2]
[330224842,1719191444055,-1000.0,0.00016437,2]
[330224843,1719191444064,-181.41556246,0.00016437,2]
[330224844,1719191444073,-154.80649189,0.00016437,2]
[330224845,1719191444082,-287.05696465,0.00016437,2]
[330224846,1719191444091,-154.80649189,0.00016437,2]
[330224847,1719191444101,-375.4552196,0.00016438,2]
[330224867,1719191447810,-124.5447804,0.00016438,2]
[330224868,1719191447819,-500.0,0.00016438,2]
[330224869,1719191447829,-500.0,0.00016438,2]
[330224870,1719191447838,-500.0,0.00016438,2]
[330224871,1719191447848,-500.0,0.00016438,2]
[330224872,1719191447857,-159.85078978,0.00016438,2]
[330224874,1719191524057,524.84201822,0.00019925,60]
[330224875,1719191531497,-500.0,0.00015602,2]
[330224876,1719191531518,-2904.69067133,0.00016338,2]
[330224877,1719191531539,-340.14921022,0.00016438,2]
[330224878,1719191531560,-500.0,0.00016438,2]
[330224879,1719191531580,-865.12,0.00016438,2]
[330224880,1719191531603,-500.0,0.00016438,2]
[330224881,1719191531622,-500.0,0.00016438,2]
[330224882,1719191531643,-500.0,0.00016438,2]
[330224883,1719191531662,-500.0,0.00016438,2]
[330224884,1719191531683,-324.32947159,0.00016438,2]
[330224885,1719191531704,-595.87,0.00016438,2]
[330224886,1719191531723,-500.0,0.00016438,2]
[330224887,1719191531748,-500.0,0.00016438,2]
[330224888,1719191531768,-500.0,0.00016438,2]
[330224889,1719191531787,-500.0,0.00016438,2]
[330224890,1719191531806,-250.0,0.00016438,2]
[330224891,1719191531826,-500.0,0.00016438,2]
[330224892,1719191531847,-500.0,0.00016438,2]
[330224893,1719191531866,-749.17,0.00016438,2]
[330224894,1719191531885,-542.42634674,0.00016438,2]
[330224895,1719191531905,-1002.36,0.00016438,2]
[330224896,1719191531925,-500.0,0.00016438,2]
[330224897,1719191531945,-937.34,0.00016438,2]
[330224898,1719191531964,-500.0,0.00016438,2]
[330224899,1719191531983,-1203.89,0.00016438,2]
[330224900,1719191532002,-500.0,0.00016438,2]
[330224901,1719191532021,-500.0,0.00016438,2]
[330224902,1719191532040,-500.0,0.00016438,2]
[330224903,1719191532060,-2531.73,0.00016438,2]
[330224904,1719191532078,-500.0,0.00016438,2]
[330224905,1719191532099,-500.0,0.00016438,2]
[330224906,1719191532119,-1162.23,0.00016438,2]
[330224907,1719191532139,-500.0,0.00016438,2]
[330224908,1719191532161,-500.0,0.00016438,2]
[330224909,1719191532180,-500.0,0.00016438,2]
[330224910,1719191532201,-589.04,0.00016438,2]
[330224911,1719191532221,-500.0,0.00016438,2]
[330224912,1719191532240,-500.0,0.00016438,2]
[330224913,1719191532259,-500.0,0.00016438,2]
[330224914,1719191532278,-500.0,0.00016438,2]
[330224915,1719191532298,-500.0,0.00016438,2]
[330224916,1719191532319,-1218.06,0.00016438,2]
[330224917,1719191532338,-707.72,0.00016438,2]
[330224918,1719191532360,-500.0,0.00016438,2]
[330224919,1719191532380,-1429.13,0.00016438,2]
[330224920,1719191532399,-500.0,0.00016438,2]
[330224921,1719191532419,-516.75,0.00016438,2]
[330224922,1719191532439,-301.39453752,0.00016438,2]
[330224923,1719191532459,-500.0,0.00016438,2]
[330224924,1719191532477,-500.0,0.00016438,2]
[330224925,1719191532497,-820.38,0.00016438,2]
[330224926,1719191532517,-500.0,0.00016438,2]
[330224927,1719191532536,-500.0,0.00016438,2]
[330224928,1719191532556,-75.6197626,0.00016438,2]
[330224929,1719191608360,3000.0,0.000225,30]
[330224930,1719191631782,-500.0,0.00015602,2]
[330224931,1719191631802,-154.80649189,0.00016404,2]
[330224932,1719191631823,-464.66350811,0.00016406,2]
[330224933,1719191792312,-500.0,0.00015602,2]
[330224934,1719191792336,-876.0,0.00016024,2]
[330224935,1719191792357,-150.0,0.00016024,2]
[330224936,1719191792380,-154.80649189,0.00016406,2]
[330224937,1719191792560,-287.05696465,0.00016406,2]
[330224938,1719191792583,-181.53915781,0.00016406,2]
[330224939,1719191792607,-300.0,0.00016437,2]
[330224940,1719191792629,-2813.84277197,0.00016437,2]
[330224941,1719191792650,-424.3802374,0.00016438,2]
[330224942,1719191792672,-500.0,0.00016438,2]
[330224943,1719191792693,-521.31,0.00016438,2]
[330224944,1719191792715,-398.66370753,0.00016438,2]
[330224945,1719191792736,-500.0,0.00016438,2]
[330224946,1719191792758,-512.36,0.00016438,2]
[330224947,1719191792780,-500.0,0.00016438,2]
[330224948,1719191792801,-500.0,0.00016438,2]
[330224949,1719191792822,-395.47961226,0.00016438,2]
[330224950,1719191792845,-500.0,0.00016438,2]
[330224951,1719191792871,-500.0,0.00016438,2]
[330224952,1719191792891,-500.0,0.00016438,2]
[330224953,1719191792913,-467.61680242,0.00016438,2]
[330224954,1719191792934,-500.0,0.00016438,2]
[330224955,1719191792956,-844.28,0.00016438,2]
[330224956,1719191792984,-923.02,0.00016438,2]
[330224957,1719191793006,-500.0,0.00016438,2]
[330224958,1719191793027,-674.89,0.00016438,2]
[330224959,1719191793049,-500.0,0.00016438,2]
[330224960,1719191793071,-500.0,0.00016438,2]
[330224961,1719191793094,-500.0,0.00016438,2]
[330224962,1719191793116,-500.0,0.00016438,2]
[330224963,1719191793138,-500.0,0.00016438,2]
[330224964,1719191793159,-500.0,0.00016438,2]
[330224965,1719191793180,-500.0,0.00016438,2]
[330224966,1719191793200,-574.23,0.00016438,2]
[330224967,1719191793223,-500.0,0.00016438,2]
[330224968,1719191793246,-500.0,0.00016438,2]
[330224969,1719191793267,-500.0,0.00016438,2]
[330224970,1719191793288,-533.57,0.00016438,2]
[330224971,1719191793312,-156.95425407,0.00016438,2]
[330224974,1719192209245,3000.0,0.000225,30]
[330224975,1719192436394,-500.0,0.00014506,2]
[330224976,1719192436415,-6173.0,0.0001526,2]
[330224977,1719192549580,-300.0,0.00015259,2]
[330224978,1719192549604,-300.0,0.00015259,2]
[330224979,1719192549626,-18727.0,0.0001526,2]
[330224980,1719192549647,-333.711898,0.0001526,2]
[330224981,1719192549667,-287.05696465,0.0001526,2]
[330224982,1719192549693,-155.32039332,0.0001526,2]
[330224983,1719192549719,-500.0,0.00015602,2]
[330224984,1719192549740,-876.0,0.00016024,2]
[330224985,1719192549761,-5277.56392113,0.00016263,2]
[330224986,1719192549786,-3011.2601448,0.00016337,2]
[330224987,1719192551111,-1000.0,0.00016437,2]
[330224988,1719192551143,-499.0866781,0.00016437,2]
[330225033,1719192634542,-500.0,0.00015602,2]
[330225035,1719192634552,-623.1333396,0.0001562,2]
[330225037,1719192634562,-14.98036498,0.00016024,2]
[330225085,1719192640183,-861.01963502,0.00016024,2]
[330225087,1719192640194,-150.887,0.00016024,2]
[330225088,1719192640204,-1333.68489533,0.00016301,2]
[330225090,1719192640218,-1611.84141467,0.00016301,2]
[330225091,1719192640229,-6105.2363404,0.00016376,2]
[330225173,1719192645243,-3534.62488882,0.00016376,2]
[330225181,1719192645255,-25124.95091018,0.00016376,2]
[330225184,1719192645267,-807.59833872,0.00016376,2]
[330225213,1719192645810,-6602.99705211,0.00016376,2]
[330225214,1719192645821,-620.15666698,0.00016401,2]
[330225216,1719192645831,-500.9133219,0.00016437,2]
[330225217,1719192645840,-1000.0,0.00016437,2]
[330225219,1719192645850,-1000.0,0.00016437,2]
[330225220,1719192645860,-1000.0,0.00016437,2]
[330225221,1719192645870,-16206.99673071,0.00016437,2]
[330225222,1719192645882,-16030.01705885,0.00016437,2]
[330225230,1719192649798,-364.72248874,0.00016437,2]
[330225231,1719192712653,-65756.6,0.00016437,2]
[330225233,1719192771372,-10000.0,0.00015471,2]
[330225234,1719192815817,3000.0,0.000225,30]
[330225236,1719192906941,150.0,0.00026,120]
[330225238,1719193408383,3000.0,0.000225,30]
[330225240,1719193546415,2789.9071291,0.00014706,2]
[330225243,1719193634977,167.990403,0.00014728,2]
[330225244,1719193653431,289.0337933,0.000259,120]
[330225286,1719193833586,-300.0,0.00015088,2]
[330225287,1719193833596,-24900.0,0.00015089,2]
[330225288,1719193833605,-9601.79213166,0.00015439,2]
[330225289,1719193833615,-7040.76470043,0.00015468,2]
[330225290,1719193833627,-2192.38936963,0.00015468,2]
[330225326,1719193840745,-511.1056432,0.00015439,2]
[330225614,1719193843679,-1845.55,0.00015439,2]
[330225627,1719193843794,-1235.06,0.00015439,2]
[330227251,1719193889716,-3498.5,0.00015302,2]
[330227255,1719193972596,398.68,0.00026,120]
[330227256,1719194011138,3000.0,0.000225,30]
[330227257,1719194057049,-10562.28786365,0.00015202,2]
[330227258,1719194057070,-300.0,0.00015213,2]
[330227259,1719194057093,-6972.7816651,0.00015838,2]
[330227260,1719194057115,-1000.0,0.0001588,2]
[330227261,1719194057135,-448.7020585,0.000159,2]
[330227262,1719194057154,-150.0,0.00015969,2]
[330227263,1719194057175,-932.885,0.00015969,2]
[330227264,1719194057195,-306.0,0.00016,2]
[330227265,1719194057218,-3923.79380918,0.00016192,2]
[330227266,1719194057238,-306.0627131,0.00016229,2]
[330227267,1719194057258,-263.30220575,0.00016273,2]
[330227268,1719194057278,-372.68468472,0.00016276,2]
[330227269,1719194059001,1200.0,0.00026,120]
[330227270,1719194224966,-300.0,0.0001539,2]
[330227271,1719194224987,-14440.1,0.00015392,2]
[330227272,1719194271825,600.0,0.00011766,2]
[330227273,1719194273454,600.0,0.00012588,2]
[330227274,1719194275186,600.0,0.0001341,2]
[330227275,1719194276792,600.0,0.00014232,2]
[330227276,1719194412268,2785.9418256,0.00014961,2]
[330227278,1719194469175,508.8669199,0.00014924,2]
[330227280,1719194603699,3000.0,0.000225,30]
[330227281,1719194687491,24900.0,0.00014931,2]
[330227419,1719195039060,-600.0,0.00015054,2]
[330227421,1719195039071,-167.9904038,0.000151,2]
[330227423,1719195039080,-374.68307727,0.00015311,2]
[330227430,1719195041082,-1391.44136003,0.00015311,2]
[330227432,1719195041091,-2416.91747958,0.00015661,2]
[330227434,1719195041101,-2416.91747958,0.00015661,2]
[330227436,1719195041110,-150.0,0.00015794,2]
[330227438,1719195041119,-876.0,0.00015794,2]
[330227440,1719195041128,-2647.51345546,0.00015838,2]
[330227441,1719195041137,-2129.2320514,0.00015883,2]
[330227444,1719195041146,-300.0,0.00015918,2]
[330227446,1719195041155,-1487.2316115,0.00015958,2]
[330227448,1719195041165,-888.24270622,0.00015959,2]
[330227450,1719195041174,-1102.94117698,0.00015995,2]
[330227452,1719195041183,-947.4992689,0.00015996,2]
[330227454,1719195041193,-154.80649189,0.00015999,2]
[330227456,1719195041203,-306.0,0.00016,2]
[330227458,1719195041212,-531.11088939,0.00016001,2]
[330227460,1719195041222,-842.64804764,0.00016023,2]
[330227462,1719195041232,-402.64531294,0.00016023,2]
[330227464,1719195041241,-402.64531294,0.00016043,2]
[330227466,1719195041250,-154.80649189,0.00016043,2]
[330227467,1719195041259,-490.28883306,0.00016043,2]
[330227469,1719195041269,-490.28883306,0.00016043,2]
[330227471,1719195041278,-627.00263973,0.00016158,2]
[330227473,1719195041288,-4792.45861333,0.00016159,2]
[330227475,1719195041297,-154.80649189,0.000163,2]
[330227477,1719195041306,-516.79936011,0.000163,2]
[330227479,1719195041315,-2652.65509755,0.00016301,2]
[330227481,1719195041324,-620.00783335,0.0001636,2]
[330227483,1719195041336,-565.7746747,0.00016376,2]
[330227485,1719195041347,-990.65106447,0.00016376,2]
[330227487,1719195041356,-401.65252924,0.00016376,2]
[330227489,1719195041366,-549.71041124,0.00016376,2]
[330227491,1719195041376,-157.19006853,0.00016399,2]
[330227493,1719195041386,-154.80649189,0.00016399,2]
[330227495,1719195041395,-154.80649189,0.00016399,2]
[330227497,1719195041404,-3137.50512111,0.000164,2]
[330227499,1719195041415,-208.78500633,0.00016401,2]
[330227501,1719195041424,-1121.68393076,0.00016435,2]
[330227503,1719195041434,-1000.0,0.00016436,2]
[330227505,1719195041443,-1000.0,0.00016436,2]
[330227506,1719195041452,-1000.0,0.00016436,2]
[330227507,1719195041461,-1000.0,0.00016436,2]
[330227508,1719195041471,-32776.14377884,0.00016437,2]
[330227509,1719195041484,-3803.57518612,0.00016437,2]
[330227510,1719195041496,-1281.10807788,0.00016437,2]
[330227511,1719195041507,-26840.74,0.00016437,2]
[330227553,1719195069656,500.0,0.00013136,2]
[330227554,1719195071260,500.0,0.00013958,2]
[330227555,1719195072883,500.0,0.0001478,2]
[330227556,1719195118940,181.86761291,0.0001478,2]
[330227557,1719195203417,3000.0,0.000225,30]
[330227559,1719195598046,241.6814545,0.00014745,2]
[330227561,1719195641076,3468.04406803,0.0002501,59]
[330227562,1719195725870,555.9773306,0.00014768,2]
[330227563,1719195800287,13967.76732439,0.00014903,2]
[330227564,1719195808077,3000.0,0.000225,30]
[330227565,1719195922787,648.21,0.00025,60]
[330227566,1719196019174,-250.0,0.00014783,2]
[330227567,1719196019194,-300.0,0.00014902,2]
[330227568,1719196019214,-300.0,0.00014902,2]
[330227569,1719196019235,-8149.194028,0.00014903,2]
[330227570,1719196027148,-271.0,0.00014902,2]
[330227571,1719196027170,-2783.03864761,0.00014903,2]
[330227572,1719196027190,-842.64804764,0.00015391,2]
[330227573,1719196027210,-565.7746747,0.00015588,2]
[330227574,1719196027232,-2351.70408307,0.000159,2]
[330227575,1719196027252,-180.50662285,0.00015934,2]
[330227576,1719196027273,-150.0,0.00015941,2]
[330227577,1719196027293,-876.0,0.00015941,2]
[330227578,1719196027313,-90025.71986475,0.00016,2]
[330227579,1719196027332,-1357.49851464,0.00016,2]
[330227580,1719196027495,-195.47966853,0.00016001,2]
[330227581,1719196027515,-179.54081427,0.00016026,2]
[330227582,1719196027534,-153.0,0.00016027,2]
[330227583,1719196027554,-2040.81356743,0.00016043,2]
[330227584,1719196027574,-153.0,0.000161,2]
[330227585,1719196027594,-153.0,0.000161,2]
[330227586,1719196027616,-306.0,0.00016164,2]
[330227587,1719196027636,-1313.011853,0.00016192,2]
[330227588,1719196027655,-239.56788705,0.00016199,2]
[330227589,1719196027679,-153.0,0.000162,2]
[330227590,1719196027700,-153.0,0.000162,2]
[330227591,1719196027721,-153.0,0.000162,2]
[330227592,1719196027742,-153.0,0.000162,2]
[330227593,1719196027764,-154.80649189,0.00016271,2]
[330227594,1719196027784,-227.58768438,0.00016272,2]
[330227595,1719196027803,-1117.74863961,0.00016374,2]
[330227596,1719196027823,-154.80649189,0.00016374,2]
[330227597,1719196027843,-1000.0,0.00016375,2]
[330227598,1719196027864,-1000.0,0.00016375,2]
[330227599,1719196027884,-159.35965211,0.00016376,2]
[330227600,1719196027905,-299.54502541,0.00016392,2]
[330227601,1719196027926,-154.80649189,0.00016392,2]
[330227602,1719196027945,-293.66869799,0.00016392,2]
[330227603,1719196027966,-1000.0,0.00016422,2]
[330227604,1719196027986,-500.0,0.00016424,2]
[330227605,1719196028006,-1000.0,0.00016436,2]
[330227606,1719196028026,-1000.0,0.00016436,2]
[330227607,1719196028046,-4970.94535929,0.00016437,2]
[330227608,1719196047101,-239.56788705,0.00016192,2]
[330227609,1719196047122,-154.80649189,0.00016199,2]
[330227610,1719196047142,-44020.23049726,0.00016437,2]
[330227641,1719196232739,-250.81599999,0.00014506,2]
[330227792,1719196238763,-249.18400001,0.00014506,2]
[330227793,1719196238776,-2040.81356743,0.00015934,2]
[330227794,1719196238786,-876.0,0.00015941,2]
[330227795,1719196238797,-150.0,0.00015941,2]
[330227796,1719196238807,-500.0,0.0001615,2]
[330227797,1719196238816,-2057.74107273,0.00016305,2]
[330227798,1719196238826,-154.80649189,0.00016336,2]
[330227799,1719196238839,-1168.57145889,0.00016337,2]
[330227800,1719196238850,-161.31499251,0.00016376,2]
[330227801,1719196238860,-2115.26284951,0.00016405,2]
[330227802,1719196238870,-300.0,0.00016436,2]
[330227803,1719196238880,-42211.41931699,0.00016437,2]
[330227804,1719196238890,-1000.0,0.00016437,2]
[330227805,1719196238900,-1000.0,0.00016437,2]
[330227806,1719196238910,-1000.0,0.00016437,2]
[330227807,1719196238919,-1000.0,0.00016437,2]
[330227809,1719196238929,-1000.0,0.00016437,2]
[330227811,1719196238939,-1000.0,0.00016437,2]
[330227813,1719196238949,-1000.0,0.00016437,2]
[330227815,1719196238959,-1000.0,0.00016437,2]
[330227817,1719196238969,-260.12314948,0.00016437,2]
[330227818,1719196238979,-287.09196786,0.00016437,2]
[330227820,1719196238991,-155.02687329,0.00016437,2]
[330227822,1719196239000,-1584.09393602,0.00016437,2]
[330227824,1719196239011,-9601.79213166,0.00016437,2]
[330227826,1719196239021,-500.0,0.00016438,2]
[330227827,1719196239031,-500.0,0.00016438,2]
[330227828,1719196239041,-280.99431189,0.00016438,2]
[330227829,1719196239051,-500.0,0.00016438,2]
[330227830,1719196239062,-326.51629993,0.00016438,2]
[330227831,1719196239072,-500.0,0.00016438,2]
[330227832,1719196239083,-500.0,0.00016438,2]
[330227833,1719196239094,-191.26812037,0.00016438,2]
[330227834,1719196239104,-500.0,0.00016438,2]
[330227835,1719196239114,-1113.85,0.00016438,2]
[330227836,1719196239125,-500.0,0.00016438,2]
[330227837,1719196239136,-610.54721276,0.00016438,2]
[330227838,1719196239147,-500.0,0.00016438,2]
[330227839,1719196239158,-500.0,0.00016438,2]
[330227840,1719196239168,-500.0,0.00016438,2]
[330227841,1719196239179,-678.75,0.00016438,2]
[330227842,1719196239190,-500.0,0.00016438,2]
[330227843,1719196239201,-500.0,0.00016438,2]
[330227844,1719196239211,-500.0,0.00016438,2]
[330227845,1719196239222,-500.0,0.00016438,2]
[330227846,1719196239232,-500.0,0.00016438,2]
[330227847,1719196239242,-647.61,0.00016438,2]
[330227848,1719196239253,-500.0,0.00016438,2]
[330227849,1719196239264,-700.42,0.00016438,2]
[330227850,1719196239275,-500.0,0.00016438,2]
[330227851,1719196239285,-500.0,0.00016438,2]
[330227852,1719196239296,-500.0,0.00016438,2]
[330227853,1719196239306,-885.7,0.00016438,2]
[330227854,1719196239317,-500.0,0.00016438,2]
[330227856,1719196239328,-500.0,0.00016438,2]
[330227857,1719196239338,-1100.19,0.00016438,2]
[330227858,1719196239349,-500.0,0.00016438,2]
[330227859,1719196239359,-500.0,0.00016438,2]
[330227860,1719196239370,-159.220322,0.00016438,2]
[330227861,1719196239380,-500.0,0.00016438,2]
[330227862,1719196239390,-718.38,0.00016438,2]
[330227863,1719196239401,-960.73,0.00016438,2]
[330227864,1719196239412,-898.38,0.00016438,2]
[330227865,1719196239422,-2657.47,0.00016438,2]
[330227866,1719196239433,-697.99,0.00016438,2]
[330227867,1719196239443,-500.0,0.00016438,2]
[330227868,1719196239453,-542.12965791,0.00016438,2]
[330227869,1719196239463,-500.0,0.00016438,2]
[330227870,1719196239473,-1154.38,0.00016438,2]
[330227871,1719196239486,-500.0,0.00016438,2]
[330227872,1719196239496,-500.0,0.00016438,2]
[330227873,1719196239506,-452.3761108,0.00016438,2]
[330227874,1719196239517,-507.38,0.00016438,2]
[330227875,1719196239526,-1168.73,0.00016438,2]
[330227876,1719196239536,-500.0,0.00016438,2]
[330227877,1719196239546,-500.0,0.00016438,2]
[330227878,1719196239556,-1371.46,0.00016438,2]
[330227879,1719196239567,-500.0,0.00016438,2]
[330227880,1719196239577,-564.7,0.00016438,2]
[330227881,1719196239587,-500.0,0.00016438,2]
[330227882,1719196239597,-504.19380257,0.00016438,2]
[330227883,1719196239607,-500.0,0.00016438,2]
[330227884,1719196239618,-500.0,0.00016438,2]
[330227885,1719196239628,-500.0,0.00016438,2]
[330227886,1719196239639,-505.59703051,0.00016438,2]
[330227887,1719196239649,-429.65505335,0.00016438,2]
[330227888,1719196239660,-506.06644704,0.00016438,2]
[330227889,1719196239670,-517.34990559,0.00016438,2]
[330227890,1719196239680,-509.23411082,0.00016438,2]
[330227891,1719196239690,-501.64963776,0.00016438,2]
[330227892,1719196239702,-500.0,0.00016438,2]
[330227893,1719196239712,-510.52575812,0.00016438,2]
[330227894,1719196239723,-500.0,0.00016438,2]
[330227895,1719196239735,-508.30539795,0.00016438,2]
[330227896,1719196239745,-663.07,0.00016438,2]
[330227897,1719196239758,-500.0,0.00016438,2]
[330227898,1719196239767,-500.0,0.00016438,2]
[330227899,1719196239778,-509.98638014,0.00016438,2]
[330227900,1719196239788,-523.96,0.00016438,2]
[330227901,1719196239799,-1040.42,0.00016438,2]
[330227902,1719196239809,-500.67855219,0.00016438,2]
[330227903,1719196239820,-507.18863497,0.00016438,2]
[330227904,1719196239830,-505.77129734,0.00016438,2]
[330227905,1719196239844,-500.0,0.00016438,2]
[330227906,1719196239855,-504.39816337,0.00016438,2]
[330227907,1719196239866,-500.0,0.00016438,2]
[330227908,1719196239877,-501.65470859,0.00016438,2]
[330227909,1719196239888,-500.8261616,0.00016438,2]
[330227910,1719196239899,-506.2344597,0.00016438,2]
[330227911,1719196239910,-500.0,0.00016438,2]
[330227912,1719196239920,-830.96,0.00016438,2]
[330227913,1719196239931,-587.1,0.00016438,2]
[330227914,1719196239942,-505.49226933,0.00016438,2]
[330227915,1719196239953,-500.0,0.00016438,2]
[330227916,1719196239963,-213.0,0.00016438,2]
[330227917,1719196239974,-511.43428098,0.00016438,2]
[330227918,1719196239985,-520.37862454,0.00016438,2]
[330227919,1719196239994,-507.81955548,0.00016438,2]
[330227920,1719196240004,-511.1449263,0.00016438,2]
[330227921,1719196240014,-500.0,0.00016438,2]
[330227922,1719196240024,-929.52,0.00016438,2]
[330227923,1719196240034,-853.84,0.00016438,2]
[330227924,1719196240044,-500.0,0.00016438,2]
[330227925,1719196240054,-1130.99,0.00016438,2]
[330227926,1719196240063,-501.16396724,0.00016438,2]
[330227927,1719196240074,-509.06532431,0.00016438,2]
[330227928,1719196240084,-25185.91,0.00016438,2]
[330227929,1719196240094,-503.90098251,0.00016438,2]
[330227930,1719196240104,-4411.75,0.00016438,2]
[330227931,1719196240114,-500.0,0.00016438,2]
[330227932,1719196240124,-521.09,0.00016438,2]
[330227933,1719196240134,-500.0,0.00016438,2]
[330227934,1719196240144,-513.12286971,0.00016438,2]
[330227935,1719196240155,-500.0,0.00016438,2]
[330227936,1719196240165,-500.0,0.00016438,2]
[330227937,1719196240175,-2389.29,0.00016438,2]
[330227938,1719196240185,-500.0,0.00016438,2]
[330227939,1719196240195,-508.15839625,0.00016438,2]
[330227940,1719196240206,-500.0,0.00016438,2]
[330227941,1719196240216,-500.0,0.00016438,2]
[330227942,1719196240227,-500.0,0.00016438,2]
[330227943,1719196240240,-821.12,0.00016438,2]
[330227944,1719196240254,-517.91,0.00016438,2]
[330227945,1719196240264,-1143.25,0.00016438,2]
[330227946,1719196240275,-876.56,0.00016438,2]
[330227947,1719196240286,-4731.23,0.00016438,2]
[330227948,1719196240296,-269.06337294,0.00016438,2]
[330227949,1719196240306,-500.0,0.00016438,2]
[330227950,1719196240316,-508.91105325,0.00016438,2]
[330227951,1719196240326,-500.0,0.00016438,2]
[330227952,1719196240336,-202.15955751,0.00016438,2]
[330227953,1719196240346,-503.89929827,0.00016438,2]
[330227954,1719196240357,-1823.71,0.00016438,2]
[330227955,1719196240368,-507.98321702,0.00016438,2]
[330227956,1719196240378,-500.0,0.00016438,2]
[330227958,1719196240388,-500.0,0.00016438,2]
[330227960,1719196240399,-510.21629241,0.00016438,2]
[330227961,1719196240409,-538.23,0.00016438,2]
[330227962,1719196240420,-692.88,0.00016438,2]
[330227963,1719196240430,-1028.89,0.00016438,2]
[330227964,1719196240439,-505.18948488,0.00016438,2]
[330227965,1719196240590,-500.16032914,0.00016438,2]
[330227966,1719196240602,-512.99197026,0.00016438,2]
[330227967,1719196240612,-500.0,0.00016438,2]
[330227968,1719196240623,-502.90119864,0.00016438,2]
[330227969,1719196240634,-517.68,0.00016438,2]
[330227970,1719196240644,-514.65302917,0.00016438,2]
[330227971,1719196240654,-508.8050644,0.00016438,2]
[330227972,1719196240664,-500.0,0.00016438,2]
[330227973,1719196240675,-933.78,0.00016438,2]
[330227974,1719196240684,-500.0,0.00016438,2]
[330227975,1719196240695,-510.54944065,0.00016438,2]
[330227976,1719196240705,-500.0,0.00016438,2]
[330227977,1719196240716,-509.85092994,0.00016438,2]
[330227978,1719196240726,-514.36007702,0.00016438,2]
[330227979,1719196240739,-500.0,0.00016438,2]
[330227980,1719196240749,-505.0278257,0.00016438,2]
[330227981,1719196240763,-801.41,0.00016438,2]
[330227982,1719196240773,-602.49,0.00016438,2]
[330227983,1719196240783,-5615.86,0.00016438,2]
[330227984,1719196240794,-500.0,0.00016438,2]
[330227985,1719196240804,-500.0,0.00016438,2]
[330227986,1719196240814,-530.15218146,0.00016438,2]
[330227987,1719196240825,-745.03,0.00016438,2]
[330227988,1719196240838,-3143.14,0.00016438,2]
[330227989,1719196240849,-500.0,0.00016438,2]
[330227990,1719196240859,-1526.19,0.00016438,2]
[330227991,1719196240869,-500.0,0.00016438,2]
[330227992,1719196240879,-578.72,0.00016438,2]
[330227993,1719196240889,-519.34388009,0.00016438,2]
[330227994,1719196240898,-869.95,0.00016438,2]
[330227995,1719196240908,-500.0,0.00016438,2]
[330227996,1719196240918,-500.0,0.00016438,2]
[330227997,1719196240929,-500.0,0.00016438,2]
[330227998,1719196240939,-500.0,0.00016438,2]
[330227999,1719196240949,-1047.49,0.00016438,2]
[330228000,1719196240960,-509.30161051,0.00016438,2]
[330228001,1719196240970,-500.0,0.00016438,2]
[330228002,1719196240980,-500.0,0.00016438,2]
[330228003,1719196240994,-2326.82,0.00016438,2]